[Event "*** Titled Tuesday Blitz"]
[Site "Chess.com"]
[Date "2021.04.06"]
[Round "2"]
[White "SanchezKelvin"]
[Black "Arseniy_Nesterov"]
[Result "1-0"]
[WhiteElo "2536"]
[BlackElo "2768"]
[TimeControl "180+1"]
[EndTime "10:18:55 PDT"]
[Termination "SanchezKelvin won on time"]

1. e4 {[%clk 0:03:00.9]} 1... e5 {[%clk 0:02:59.8]} 2. Nf3 {[%clk 0:03:00.6]}
2... Nc6 {[%clk 0:02:59.9]} 3. Bc4 {[%clk 0:02:57.9]} 3... Bc5 {[%clk
0:02:59.5]} 4. c3 {[%clk 0:02:57.8]} 4... Nf6 {[%clk 0:02:59.8]} 5. d3 {[%clk
0:02:56.8]} 5... d6 {[%clk 0:02:59.2]} 6. a4 {[%clk 0:02:56.3]} 6... a5 {[%clk
0:02:58.1]} 7. Bg5 {[%clk 0:02:55.5]} 7... h6 {[%clk 0:02:57.5]} 8. Bh4 {[%clk
0:02:53.8]} 8... g5 {[%clk 0:02:56.8]} 9. Bg3 {[%clk 0:02:54.1]} 9... Qe7 {[%clk
0:02:53.5]} 10. Nbd2 {[%clk 0:02:53.1]} 10... Be6 {[%clk 0:02:44.8]} 11. Bxe6
{[%clk 0:02:52.6]} 11... fxe6 {[%clk 0:02:43.7]} 12. h4 {[%clk 0:02:46]} 12...
g4 {[%clk 0:02:38.9]} 13. Nh2 {[%clk 0:02:45.5]} 13... h5 {[%clk 0:02:35.7]} 14.
Qe2 {[%clk 0:02:41.8]} 14... O-O-O {[%clk 0:02:16.5]} 15. O-O-O {[%clk
0:02:38.2]} 15... d5 {[%clk 0:02:06.1]} 16. Rhe1 {[%clk 0:02:24.7]} 16... d4
{[%clk 0:02:01.8]} 17. Nc4 {[%clk 0:02:19.8]} 17... Nd7 {[%clk 0:01:59.5]} 18.
Kb1 {[%clk 0:01:56.3]} 18... Qf6 {[%clk 0:01:53.7]} 19. Nf1 {[%clk 0:01:46.8]}
19... Rhf8 {[%clk 0:01:36]} 20. Nfd2 {[%clk 0:01:42.4]} 20... dxc3 {[%clk
0:01:19.4]} 21. bxc3 {[%clk 0:01:40.6]} 21... Bxf2 {[%clk 0:01:16.2]} 22. Rf1
{[%clk 0:01:38.9]} 22... Bxg3 {[%clk 0:01:16.4]} 23. Rxf6 {[%clk 0:01:38.2]}
23... Rxf6 {[%clk 0:01:17.3]} 24. Rf1 {[%clk 0:01:32]} 24... Rdf8 {[%clk
0:01:11.7]} 25. Rxf6 {[%clk 0:01:29]} 25... Rxf6 {[%clk 0:01:12.6]} 26. Qe3
{[%clk 0:01:20.9]} 26... Bf4 {[%clk 0:01:02.9]} 27. Qe1 {[%clk 0:01:10.4]} 27...
Nc5 {[%clk 0:01:00.5]} 28. g3 {[%clk 0:01:01]} 28... Bh6 {[%clk 0:01:00]} 29.
Kc2 {[%clk 0:00:54.5]} 29... Nxa4 {[%clk 0:00:51.8]} 30. Nb3 {[%clk 0:00:42.1]}
30... Rf3 {[%clk 0:00:34.2]} 31. Nbd2 {[%clk 0:00:35]} 31... Rf8 {[%clk
0:00:22.2]} 32. Qa1 {[%clk 0:00:32.3]} 32... Nc5 {[%clk 0:00:13.2]} 33. Nxa5
{[%clk 0:00:32.3]} 33... Nxa5 {[%clk 0:00:07.2]} 34. Qxa5 {[%clk 0:00:31.4]}
34... b6 {[%clk 0:00:07.8]} 35. Qa8+ {[%clk 0:00:16.6]} 35... Kd7 {[%clk
0:00:07.7]} 36. Qa1 {[%clk 0:00:14.3]} 36... Rf2 {[%clk 0:00:07.6]} 37. Qa8
{[%clk 0:00:10.1]} 37... Rxd2+ {[%clk 0:00:07.2]} 38. Kb1 {[%clk 0:00:11]} 38...
Rxd3 {[%clk 0:00:05.1]} 39. Qh8 {[%clk 0:00:10.8]} 39... Bd2 {[%clk 0:00:03.6]}
40. Qxe5 {[%clk 0:00:08.2]} 40... Bxc3 {[%clk 0:00:01.6]} 41. Qxh5 {[%clk
0:00:08.2]} 41... Rxg3 {[%clk 0:00:01.2]} 42. Qf7+ {[%clk 0:00:07.9]} 1-0

[Event "*** Titled Tuesday Blitz"]
[Site "Chess.com"]
[Date "2021.04.06"]
[Round "2"]
[White "scandalgod"]
[Black "NTBT_DHS"]
[Result "0-1"]
[WhiteElo "2501"]
[BlackElo "2733"]
[TimeControl "180+1"]
[EndTime "10:18:55 PDT"]
[Termination "NTBT_DHS won on time"]

1. d4 {[%clk 0:02:49]} 1... Nf6 {[%clk 0:02:58.7]} 2. c4 {[%clk 0:02:48]} 2...
g6 {[%clk 0:02:59.1]} 3. Nc3 {[%clk 0:02:47.6]} 3... Bg7 {[%clk 0:02:59.7]} 4.
e4 {[%clk 0:02:47.9]} 4... O-O {[%clk 0:03:00.4]} 5. f4 {[%clk 0:02:47]} 5... d6
{[%clk 0:03:00.6]} 6. Nf3 {[%clk 0:02:46.7]} 6... c5 {[%clk 0:03:01.1]} 7. d5
{[%clk 0:02:46]} 7... e6 {[%clk 0:03:01.4]} 8. Be2 {[%clk 0:02:44.1]} 8... exd5
{[%clk 0:03:02]} 9. cxd5 {[%clk 0:02:40.9]} 9... Re8 {[%clk 0:03:02.6]} 10. e5
{[%clk 0:02:40.5]} 10... dxe5 {[%clk 0:03:03.5]} 11. fxe5 {[%clk 0:02:38.2]}
11... Ng4 {[%clk 0:03:03.9]} 12. Bg5 {[%clk 0:02:38]} 12... Qb6 {[%clk
0:03:03.5]} 13. O-O {[%clk 0:02:31.1]} 13... Nxe5 {[%clk 0:02:55.3]} 14. d6
{[%clk 0:02:29.1]} 14... Be6 {[%clk 0:02:46]} 15. Nd5 {[%clk 0:02:23.5]} 15...
Qxb2 {[%clk 0:01:54.2]} 16. Rb1 {[%clk 0:02:01.6]} 16... Nxf3+ {[%clk
0:01:53.3]} 17. Bxf3 {[%clk 0:01:53.5]} 17... Qd4+ {[%clk 0:01:53.8]} 18. Kh1
{[%clk 0:01:44.6]} 18... Qxd1 {[%clk 0:01:52.9]} 19. Rfxd1 {[%clk 0:01:40.7]}
19... Nc6 {[%clk 0:01:35.2]} 20. Nc7 {[%clk 0:01:39.2]} 20... Nd4 {[%clk
0:01:35.1]} 21. Rxb7 {[%clk 0:01:27.7]} 21... Nxf3 {[%clk 0:01:33.6]} 22. gxf3
{[%clk 0:01:21]} 22... Bd7 {[%clk 0:01:33.6]} 23. Nxa8 {[%clk 0:01:17]} 23...
Bc6 {[%clk 0:01:34.1]} 24. d7 {[%clk 0:01:11.2]} 24... Bxf3+ {[%clk 0:01:17.4]}
25. Kg1 {[%clk 0:01:08.4]} 25... Rf8 {[%clk 0:01:12.8]} 26. d8=Q {[%clk
0:00:50.4]} 26... Bxb7 {[%clk 0:01:12.8]} 27. Nc7 {[%clk 0:00:41.1]} 27... h6
{[%clk 0:01:07.9]} 28. Be7 {[%clk 0:00:26.7]} 28... Rxd8 {[%clk 0:01:07.5]} 29.
Rxd8+ {[%clk 0:00:27]} 29... Kh7 {[%clk 0:01:08.4]} 30. Ne8 {[%clk 0:00:26.4]}
30... Bd4+ {[%clk 0:01:07]} 31. Kf1 {[%clk 0:00:26.6]} 31... Ba6+ {[%clk
0:01:06]} 32. Ke1 {[%clk 0:00:26.1]} 32... g5 {[%clk 0:00:56.8]} 33. Bf6 {[%clk
0:00:25.6]} 33... Bg1 {[%clk 0:00:57.1]} 34. Rd7 {[%clk 0:00:22.9]} 34... Bc4
{[%clk 0:00:54.1]} 35. Rxa7 {[%clk 0:00:21.2]} 35... Bxh2 {[%clk 0:00:53]} 36.
Be7 {[%clk 0:00:20.3]} 36... Bg3+ {[%clk 0:00:46.7]} 37. Kd1 {[%clk 0:00:20.2]}
37... Kg6 {[%clk 0:00:37.5]} 38. Bd6 {[%clk 0:00:20.3]} 38... Bf2 {[%clk
0:00:36.8]} 39. Nc7 {[%clk 0:00:17.5]} 39... g4 {[%clk 0:00:36]} 40. Ne8 {[%clk
0:00:15.3]} 40... g3 {[%clk 0:00:35.5]} 41. Bxg3 {[%clk 0:00:11.7]} 41... Bxg3
{[%clk 0:00:36.4]} 42. Nc7 {[%clk 0:00:10.8]} 42... h5 {[%clk 0:00:35.9]} 43.
Rb7 {[%clk 0:00:10.1]} 43... h4 {[%clk 0:00:35.7]} 44. Rb6+ {[%clk 0:00:10.5]}
44... f6 {[%clk 0:00:34.7]} 45. Ne8 {[%clk 0:00:10.4]} 45... Be5 {[%clk
0:00:34.8]} 46. Nd6 {[%clk 0:00:10.1]} 46... Bd3 {[%clk 0:00:33.5]} 47. Kd2
{[%clk 0:00:09.2]} 47... Bf1 {[%clk 0:00:28.8]} 48. Ne4 {[%clk 0:00:07.5]} 48...
c4 {[%clk 0:00:29.2]} 49. Ke1 {[%clk 0:00:05.6]} 49... Bd3 {[%clk 0:00:29.3]}
50. Nc3 {[%clk 0:00:04.8]} 50... Bxc3+ {[%clk 0:00:29.5]} 0-1

[Event "*** Titled Tuesday Blitz"]
[Site "Chess.com"]
[Date "2021.04.06"]
[Round "2"]
[White "ybruned"]
[Black "Trankuilizer"]
[Result "1/2-1/2"]
[WhiteElo "2338"]
[BlackElo "2612"]
[TimeControl "180+1"]
[EndTime "10:18:55 PDT"]
[Termination "Game drawn by repetition"]

1. b3 {[%clk 0:03:00.9]} 1... e5 {[%clk 0:02:59.1]} 2. Bb2 {[%clk 0:03:00.4]}
2... d6 {[%clk 0:02:59.6]} 3. e3 {[%clk 0:03:00.3]} 3... Nf6 {[%clk 0:02:59.8]}
4. d4 {[%clk 0:03:01]} 4... exd4 {[%clk 0:02:59.3]} 5. Qxd4 {[%clk 0:02:59]}
5... Nc6 {[%clk 0:02:59.5]} 6. Qd1 {[%clk 0:02:55.3]} 6... g6 {[%clk 0:02:58.1]}
7. Nf3 {[%clk 0:02:54.7]} 7... Bg7 {[%clk 0:02:58.3]} 8. Be2 {[%clk 0:02:55.3]}
8... O-O {[%clk 0:02:58.6]} 9. O-O {[%clk 0:02:55.9]} 9... a5 {[%clk 0:02:57]}
10. Nbd2 {[%clk 0:02:39.7]} 10... a4 {[%clk 0:02:56.9]} 11. a3 {[%clk
0:02:40.3]} 11... axb3 {[%clk 0:02:55.6]} 12. cxb3 {[%clk 0:02:41.2]} 12... Be6
{[%clk 0:02:53.2]} 13. b4 {[%clk 0:02:39.5]} 13... Qe7 {[%clk 0:02:45.9]} 14.
Qc2 {[%clk 0:02:37.4]} 14... Bf5 {[%clk 0:02:45]} 15. Bd3 {[%clk 0:02:30.8]}
15... Bxd3 {[%clk 0:02:39.2]} 16. Qxd3 {[%clk 0:02:30.2]} 16... Nd7 {[%clk
0:02:40.1]} 17. Bxg7 {[%clk 0:02:28.3]} 17... Kxg7 {[%clk 0:02:41]} 18. Nd4
{[%clk 0:02:14.6]} 18... Nxd4 {[%clk 0:02:31.4]} 19. Qxd4+ {[%clk 0:02:11.8]}
19... Qe5 {[%clk 0:02:31]} 20. Qxe5+ {[%clk 0:02:01.7]} 20... Nxe5 {[%clk
0:02:30.9]} 21. Rfc1 {[%clk 0:02:02.2]} 21... c6 {[%clk 0:02:30.1]} 22. Ne4
{[%clk 0:01:56.2]} 22... d5 {[%clk 0:02:29.9]} 23. Nc5 {[%clk 0:01:52.6]} 23...
Ra7 {[%clk 0:02:30.2]} 24. a4 {[%clk 0:01:33.7]} 24... Rd8 {[%clk 0:02:19.5]}
25. Rd1 {[%clk 0:01:25]} 25... Rda8 {[%clk 0:02:07.8]} 26. a5 {[%clk 0:01:23.3]}
26... b6 {[%clk 0:02:00.8]} 27. Nb3 {[%clk 0:01:21]} 27... Nc4 {[%clk
0:01:59.4]} 28. axb6 {[%clk 0:01:13.5]} 28... Rxa1 {[%clk 0:01:52.9]} 29. Rxa1
{[%clk 0:01:12.6]} 29... Rxa1+ {[%clk 0:01:52]} 30. Nxa1 {[%clk 0:01:13.2]}
30... Nxb6 {[%clk 0:01:52.4]} 31. Nb3 {[%clk 0:01:13.8]} 31... Nc8 {[%clk
0:01:46.7]} 32. Nd4 {[%clk 0:01:08.3]} 32... Na7 {[%clk 0:01:41.3]} 33. Kf1
{[%clk 0:01:01.4]} 33... Kf6 {[%clk 0:01:41.1]} 34. Ke2 {[%clk 0:01:02]} 34...
Ke7 {[%clk 0:01:40.6]} 35. Kd3 {[%clk 0:01:02.5]} 35... Kd6 {[%clk 0:01:40.9]}
36. Kc3 {[%clk 0:01:02.7]} 36... Nc8 {[%clk 0:01:39.8]} 37. h3 {[%clk
0:00:31.6]} 37... Nb6 {[%clk 0:01:39.3]} 38. f3 {[%clk 0:00:25.7]} 38... h5
{[%clk 0:01:31.9]} 39. h4 {[%clk 0:00:22.8]} 39... Nc4 {[%clk 0:01:25.5]} 40.
Kd3 {[%clk 0:00:20.6]} 40... Ne5+ {[%clk 0:01:18]} 41. Kc3 {[%clk 0:00:19.7]}
41... f5 {[%clk 0:01:07.4]} 42. Nb3 {[%clk 0:00:17.2]} 42... Nc4 {[%clk
0:00:58.9]} 43. Kd3 {[%clk 0:00:16.5]} 43... Ne5+ {[%clk 0:00:52]} 44. Kc3
{[%clk 0:00:16.2]} 44... Nd7 {[%clk 0:00:52.9]} 45. Nd4 {[%clk 0:00:16.3]} 45...
Nb6 {[%clk 0:00:44.7]} 46. Ne2 {[%clk 0:00:16.5]} 46... Nc4 {[%clk 0:00:43.2]}
47. Kd3 {[%clk 0:00:17.1]} 47... Ne5+ {[%clk 0:00:40]} 48. Kd4 {[%clk 0:00:17]}
48... Nd7 {[%clk 0:00:20.3]} 49. Nf4 {[%clk 0:00:15.2]} 49... Ne5 {[%clk
0:00:20.2]} 50. Ne2 {[%clk 0:00:11.6]} 50... Nd7 {[%clk 0:00:17.8]} 51. Nf4
{[%clk 0:00:11.7]} 51... Ne5 {[%clk 0:00:15.5]} 52. Ne2 {[%clk 0:00:11.8]}
1/2-1/2

[Event "*** Titled Tuesday Blitz"]
[Site "Chess.com"]
[Date "2021.04.06"]
[Round "2"]
[White "lukazz029"]
[Black "Leo_C"]
[Result "1/2-1/2"]
[WhiteElo "2124"]
[BlackElo "2398"]
[TimeControl "180+1"]
[EndTime "10:18:55 PDT"]
[Termination "Game drawn - insufficient material"]

1. e4 {[%clk 0:03:00.9]} 1... Nf6 {[%clk 0:02:59.6]} 2. e5 {[%clk 0:02:59.9]}
2... Nd5 {[%clk 0:02:59.7]} 3. d4 {[%clk 0:03:00.2]} 3... d6 {[%clk 0:03:00]} 4.
Nf3 {[%clk 0:02:59.6]} 4... dxe5 {[%clk 0:02:58.8]} 5. Nxe5 {[%clk 0:02:58.6]}
5... c6 {[%clk 0:02:58.8]} 6. Bc4 {[%clk 0:02:57.1]} 6... Nd7 {[%clk 0:02:54.1]}
7. Qe2 {[%clk 0:02:55.3]} 7... Nxe5 {[%clk 0:02:51.1]} 8. dxe5 {[%clk
0:02:54.8]} 8... Bf5 {[%clk 0:02:50.2]} 9. O-O {[%clk 0:02:53.7]} 9... e6 {[%clk
0:02:38.3]} 10. a3 {[%clk 0:02:39.6]} 10... Bc5 {[%clk 0:02:32.6]} 11. b4 {[%clk
0:02:37]} 11... Bb6 {[%clk 0:02:31.9]} 12. Bd3 {[%clk 0:02:35.2]} 12... Bxd3
{[%clk 0:02:26.6]} 13. Qxd3 {[%clk 0:02:36.1]} 13... a5 {[%clk 0:02:24.2]} 14.
c4 {[%clk 0:02:09.3]} 14... Ne7 {[%clk 0:02:21]} 15. Qg3 {[%clk 0:02:09.6]}
15... axb4 {[%clk 0:02:08.3]} 16. Qxg7 {[%clk 0:02:06]} 16... Rg8 {[%clk
0:02:08.3]} 17. Qxh7 {[%clk 0:02:06.6]} 17... Qd4 {[%clk 0:02:04.8]} 18. Ra2
{[%clk 0:02:04]} 18... b3 {[%clk 0:01:59.8]} 19. Re2 {[%clk 0:01:45.7]} 19...
Qg4 {[%clk 0:01:57.2]} 20. Qe4 {[%clk 0:01:37.1]} 20... Qxe4 {[%clk 0:01:28.6]}
21. Rxe4 {[%clk 0:01:38]} 21... Nf5 {[%clk 0:01:17]} 22. Nd2 {[%clk 0:01:34.1]}
22... Bc5 {[%clk 0:01:06.4]} 23. Nxb3 {[%clk 0:01:32.5]} 23... Bxa3 {[%clk
0:01:05.5]} 24. Bxa3 {[%clk 0:01:33.4]} 24... Rxa3 {[%clk 0:01:05.1]} 25. Nc5
{[%clk 0:01:33.4]} 25... b6 {[%clk 0:01:01.3]} 26. Nb7 {[%clk 0:01:27.7]} 26...
Ke7 {[%clk 0:00:51.8]} 27. Rd1 {[%clk 0:01:26.4]} 27... Ra7 {[%clk 0:00:33.6]}
28. Nd6 {[%clk 0:01:25.4]} 28... Nxd6 {[%clk 0:00:33.6]} 29. exd6+ {[%clk
0:01:23]} 29... Kd7 {[%clk 0:00:33.8]} 30. Rf4 {[%clk 0:01:23]} 30... f5 {[%clk
0:00:32.8]} 31. Rh4 {[%clk 0:01:22.9]} 31... Rg7 {[%clk 0:00:32.1]} 32. Rh6
{[%clk 0:01:20.6]} 32... b5 {[%clk 0:00:31.1]} 33. c5 {[%clk 0:01:19.9]} 33...
Ra4 {[%clk 0:00:26.8]} 34. h4 {[%clk 0:01:17.4]} 34... Rc4 {[%clk 0:00:26.1]}
35. Re1 {[%clk 0:01:11.4]} 35... Rxc5 {[%clk 0:00:25]} 36. Rhxe6 {[%clk
0:01:10.5]} 36... Rd5 {[%clk 0:00:22.8]} 37. Re7+ {[%clk 0:01:05.6]} 37... Rxe7
{[%clk 0:00:22.6]} 38. dxe7 {[%clk 0:01:06.5]} 38... Ke8 {[%clk 0:00:22.7]} 39.
h5 {[%clk 0:01:07.1]} 39... f4 {[%clk 0:00:22.7]} 40. Re6 {[%clk 0:01:03.2]}
40... Rxh5 {[%clk 0:00:20.4]} 41. Rxc6 {[%clk 0:00:59.7]} 41... Kxe7 {[%clk
0:00:20.5]} 42. Rb6 {[%clk 0:00:59.8]} 42... Rd5 {[%clk 0:00:19.6]} 43. Kh2
{[%clk 0:00:56.8]} 43... Kd7 {[%clk 0:00:19.9]} 44. Kh3 {[%clk 0:00:54.3]} 44...
Kc7 {[%clk 0:00:19.9]} 45. Ra6 {[%clk 0:00:54.3]} 45... b4 {[%clk 0:00:19.9]}
46. Ra1 {[%clk 0:00:52.9]} 46... b3 {[%clk 0:00:19.9]} 47. Kg4 {[%clk
0:00:52.2]} 47... Rd4 {[%clk 0:00:18.1]} 48. Rb1 {[%clk 0:00:51.2]} 48... Rb4
{[%clk 0:00:17.7]} 49. g3 {[%clk 0:00:38.4]} 49... fxg3+ {[%clk 0:00:16.7]} 50.
Kxg3 {[%clk 0:00:39.3]} 50... Kd6 {[%clk 0:00:16.9]} 51. f4 {[%clk 0:00:39.8]}
51... b2 {[%clk 0:00:16.9]} 52. Kg4 {[%clk 0:00:39.8]} 52... Ke6 {[%clk
0:00:17.2]} 53. Kg5 {[%clk 0:00:38.3]} 53... Kf7 {[%clk 0:00:17]} 54. f5 {[%clk
0:00:37.6]} 54... Rb5 {[%clk 0:00:17.2]} 55. Kg4 {[%clk 0:00:35.8]} 55... Kf6
{[%clk 0:00:17.5]} 56. Kf3 {[%clk 0:00:34.7]} 56... Kxf5 {[%clk 0:00:17.2]} 57.
Ke2 {[%clk 0:00:34.5]} 57... Ke4 {[%clk 0:00:17.2]} 58. Kd2 {[%clk 0:00:34.6]}
58... Kd4 {[%clk 0:00:17.4]} 59. Kc2 {[%clk 0:00:34.9]} 59... Kc4 {[%clk
0:00:17.1]} 60. Rxb2 {[%clk 0:00:33.7]} 60... Rxb2+ {[%clk 0:00:17]} 61. Kxb2
{[%clk 0:00:34.5]} 1/2-1/2

[Event "*** Titled Tuesday Blitz"]
[Site "Chess.com"]
[Date "2021.04.06"]
[Round "2"]
[White "GalperinPlaton"]
[Black "Nozdrachev_Leonid"]
[Result "0-1"]
[WhiteElo "2826"]
[BlackElo "2558"]
[TimeControl "180+1"]
[EndTime "10:18:57 PDT"]
[Termination "Nozdrachev_Leonid won on time"]

1. c4 {[%clk 0:03:00.9]} 1... d6 {[%clk 0:02:58.2]} 2. Nc3 {[%clk 0:03:00.8]}
2... Nf6 {[%clk 0:02:57.3]} 3. d4 {[%clk 0:03:01.1]} 3... Bf5 {[%clk 0:02:55.4]}
4. g3 {[%clk 0:02:59.7]} 4... Nc6 {[%clk 0:02:49.2]} 5. Bg2 {[%clk 0:02:57]}
5... e5 {[%clk 0:02:47.6]} 6. Nf3 {[%clk 0:02:56.8]} 6... Be7 {[%clk 0:02:41]}
7. d5 {[%clk 0:02:50.5]} 7... Nb8 {[%clk 0:02:31.6]} 8. O-O {[%clk 0:02:49.2]}
8... O-O {[%clk 0:02:30.6]} 9. Ne1 {[%clk 0:02:46.4]} 9... Na6 {[%clk
0:02:27.9]} 10. e4 {[%clk 0:02:45.9]} 10... Bg4 {[%clk 0:02:27.4]} 11. f3 {[%clk
0:02:45.1]} 11... Bd7 {[%clk 0:02:26.6]} 12. Nd3 {[%clk 0:02:45.4]} 12... Nc5
{[%clk 0:02:23.6]} 13. Be3 {[%clk 0:02:45.7]} 13... Nxd3 {[%clk 0:02:18.5]} 14.
Qxd3 {[%clk 0:02:46.6]} 14... c6 {[%clk 0:02:17.5]} 15. Rfd1 {[%clk 0:02:32.9]}
15... cxd5 {[%clk 0:02:16.7]} 16. cxd5 {[%clk 0:02:31]} 16... Qa5 {[%clk
0:02:11.8]} 17. Rab1 {[%clk 0:02:23.8]} 17... Rfc8 {[%clk 0:02:11]} 18. b4
{[%clk 0:02:23.4]} 18... Qd8 {[%clk 0:02:07.8]} 19. a4 {[%clk 0:02:19.9]} 19...
a5 {[%clk 0:01:54.5]} 20. bxa5 {[%clk 0:02:16.5]} 20... Qxa5 {[%clk 0:01:53.4]}
21. Rdc1 {[%clk 0:02:02.3]} 21... Qa6 {[%clk 0:01:44.8]} 22. Qxa6 {[%clk
0:01:57.4]} 22... bxa6 {[%clk 0:01:45.7]} 23. a5 {[%clk 0:01:53.3]} 23... Bd8
{[%clk 0:01:44.2]} 24. Bb6 {[%clk 0:01:48.7]} 24... Ne8 {[%clk 0:01:26.8]} 25.
Bf1 {[%clk 0:01:45.3]} 25... Bg5 {[%clk 0:01:23.3]} 26. Rc2 {[%clk 0:01:36]}
26... Ba4 {[%clk 0:01:22.8]} 27. Nxa4 {[%clk 0:01:04.4]} 27... Rxc2 {[%clk
0:01:21]} 28. Bf2 {[%clk 0:01:04.2]} 28... Bd2 {[%clk 0:01:03.8]} 29. Nb6 {[%clk
0:00:59.8]} 29... Rb8 {[%clk 0:00:59.8]} 30. Ra1 {[%clk 0:00:56.8]} 30... Bc3
{[%clk 0:00:58.1]} 31. Ra4 {[%clk 0:00:55.9]} 31... Nc7 {[%clk 0:00:51.4]} 32.
Rc4 {[%clk 0:00:55.1]} 32... Nb5 {[%clk 0:00:46.7]} 33. Rc6 {[%clk 0:00:54.9]}
33... Nd4 {[%clk 0:00:42.9]} 34. Rxd6 {[%clk 0:00:30.3]} 34... Nxf3+ {[%clk
0:00:42.6]} 35. Kg2 {[%clk 0:00:30.5]} 35... Bd4 {[%clk 0:00:38.8]} 36. Kxf3
{[%clk 0:00:21.9]} 36... Rxf2+ {[%clk 0:00:38.6]} 37. Kg4 {[%clk 0:00:22.4]}
37... Rxf1 {[%clk 0:00:39.5]} 38. Nd7 {[%clk 0:00:19.6]} 38... h5+ {[%clk
0:00:32]} 39. Kxh5 {[%clk 0:00:18.1]} 39... Rb2 {[%clk 0:00:25.6]} 40. Rxa6
{[%clk 0:00:16.1]} 40... Rxh2+ {[%clk 0:00:21.4]} 41. Kg5 {[%clk 0:00:16.3]}
41... f6+ {[%clk 0:00:17.2]} 42. Kg4 {[%clk 0:00:15.1]} 42... Rg2 {[%clk
0:00:14.6]} 43. Ra8+ {[%clk 0:00:12.3]} 43... Kf7 {[%clk 0:00:14.2]} 44. Nb6
{[%clk 0:00:02.5]} 44... Rfg1 {[%clk 0:00:13.1]} 0-1

[Event "*** Titled Tuesday Blitz"]
[Site "Chess.com"]
[Date "2021.04.06"]
[Round "2"]
[White "c_r_e_e_p_e_r"]
[Black "ENajer77"]
[Result "0-1"]
[WhiteElo "2376"]
[BlackElo "2631"]
[TimeControl "180+1"]
[EndTime "10:18:59 PDT"]
[Termination "ENajer77 won by resignation"]

1. c4 {[%clk 0:03:00.9]} 1... e5 {[%clk 0:02:47.6]} 2. Nc3 {[%clk 0:03:01.1]}
2... d6 {[%clk 0:02:46.4]} 3. Nf3 {[%clk 0:03:01.5]} 3... f5 {[%clk 0:02:46.4]}
4. d4 {[%clk 0:02:58.8]} 4... e4 {[%clk 0:02:46.7]} 5. Ng1 {[%clk 0:02:54.7]}
5... Be7 {[%clk 0:02:41.9]} 6. g3 {[%clk 0:02:47]} 6... Nf6 {[%clk 0:02:38.9]}
7. Bg2 {[%clk 0:02:47.3]} 7... O-O {[%clk 0:02:39]} 8. Nh3 {[%clk 0:02:46.7]}
8... c6 {[%clk 0:02:38.9]} 9. d5 {[%clk 0:02:45.9]} 9... Nbd7 {[%clk 0:02:37.4]}
10. Nf4 {[%clk 0:02:45]} 10... Ne5 {[%clk 0:02:37.5]} 11. b3 {[%clk 0:02:37.9]}
11... g5 {[%clk 0:02:03.6]} 12. Ne6 {[%clk 0:02:38]} 12... Bxe6 {[%clk
0:02:04.1]} 13. dxe6 {[%clk 0:02:38.9]} 13... Ne8 {[%clk 0:02:03.5]} 14. Bb2
{[%clk 0:02:21]} 14... Ng7 {[%clk 0:02:03]} 15. c5 {[%clk 0:02:13.8]} 15... Nxe6
{[%clk 0:01:59.7]} 16. cxd6 {[%clk 0:02:13]} 16... Qxd6 {[%clk 0:01:59.5]} 17.
Qc1 {[%clk 0:02:02.5]} 17... Rad8 {[%clk 0:01:37.9]} 18. O-O {[%clk 0:02:02.5]}
18... g4 {[%clk 0:01:36.7]} 19. Rd1 {[%clk 0:01:47.9]} 19... Qc7 {[%clk
0:01:33.9]} 20. Qh6 {[%clk 0:01:46.3]} 20... Rf6 {[%clk 0:01:23.4]} 21. Qc1
{[%clk 0:00:34.4]} 21... Rxd1+ {[%clk 0:01:22]} 22. Nxd1 {[%clk 0:00:33.8]}
22... Rf8 {[%clk 0:01:15.3]} 23. Qc3 {[%clk 0:00:33.1]} 23... Bf6 {[%clk
0:01:14.8]} 24. Qc2 {[%clk 0:00:32.5]} 24... Bg5 {[%clk 0:00:49.8]} 25. Ne3
{[%clk 0:00:29.5]} 25... Bxe3 {[%clk 0:00:41.3]} 26. fxe3 {[%clk 0:00:30.4]}
26... Ng6 {[%clk 0:00:39.6]} 27. Qc3 {[%clk 0:00:29.9]} 27... Qg7 {[%clk
0:00:36.6]} 28. Qd2 {[%clk 0:00:27.8]} 28... Qe7 {[%clk 0:00:30.7]} 29. a4
{[%clk 0:00:26.8]} 29... Rd8 {[%clk 0:00:29]} 30. Qc3 {[%clk 0:00:26.2]} 30...
Qg7 {[%clk 0:00:26.3]} 31. Qc2 {[%clk 0:00:26.5]} 31... Qf7 {[%clk 0:00:24.4]}
32. Rd1 {[%clk 0:00:26.1]} 32... Rxd1+ {[%clk 0:00:22.2]} 33. Qxd1 {[%clk
0:00:27]} 33... Qe7 {[%clk 0:00:20]} 34. Qc2 {[%clk 0:00:25.8]} 34... Qc5 {[%clk
0:00:19]} 35. Qd2 {[%clk 0:00:24.5]} 35... Qd5 {[%clk 0:00:18.3]} 36. Qc3 {[%clk
0:00:23.6]} 36... Qd7 {[%clk 0:00:15.8]} 37. h3 {[%clk 0:00:20.6]} 37... h5
{[%clk 0:00:14.2]} 38. Qf6 {[%clk 0:00:19.2]} 38... Qf7 {[%clk 0:00:13.4]} 39.
Qc3 {[%clk 0:00:15.2]} 39... Kh7 {[%clk 0:00:13.3]} 40. h4 {[%clk 0:00:12]}
40... Nc7 {[%clk 0:00:11.9]} 41. b4 {[%clk 0:00:10.6]} 41... Nd5 {[%clk
0:00:11.9]} 42. Qd4 {[%clk 0:00:10.8]} 42... a6 {[%clk 0:00:11.3]} 43. Bf1
{[%clk 0:00:09.7]} 43... Qe7 {[%clk 0:00:10.2]} 44. Ba3 {[%clk 0:00:08.5]} 44...
Qe5 {[%clk 0:00:08.8]} 45. Qc5 {[%clk 0:00:07.5]} 45... Qxg3+ {[%clk 0:00:08.7]}
46. Bg2 {[%clk 0:00:06.5]} 46... Nxe3 {[%clk 0:00:06.4]} 0-1